bitfinex/quotes_ETHUSD_20250616
["timestamp","ask_amount","ask_price","bid_price","bid_amount"]
[1750114776159,0.2190339,2575.6,2575.5,3.88274121]
[1750114776326,0.2190339,2575.6,2575.5,9.786]
[1750114776523,0.2190339,2575.6,2575.5,1.575]
[1750114776710,0.2190339,2575.6,2575.0,1.575]
[1750114777111,3.88275535,2575.5,2574.9,3.88359575]
[1750114777355,2.42913109,2575.6,2574.9,3.88359575]
[1750114777356,7.03512674,2575.6,2574.9,3.88359575]
[1750114777524,2.339,2575.4,2574.8,16.48167238]
[1750114777726,6.22199885,2575.4,2574.6,1.575]
[1750114777934,6.22236667,2575.1,2574.4,11.722]
[1750114778130,2.96123667,2575.0,2574.6,3.88403764]
[1750114778457,2.339,2575.0,2574.8,3.88367421]
[1750114779255,2.339,2575.2,2574.6,3.88403764]
[1750114779452,2.339,2575.2,2574.5,12.96522858]
[1750114779754,2.339,2575.2,2574.7,3.88386118]
[1750114779949,2.339,2575.2,2574.5,9.081]
[1750114780154,1.2339,2575.1,2574.7,3.8838351]
[1750114780311,1.2339,2575.1,2574.8,3.88378281]
[1750114780515,1.2339,2575.1,2574.7,3.88389108]
[1750114780912,1.2339,2575.1,2574.8,3.8837834]
[1750114781118,1.2339,2575.1,2574.8,3.88366046]
[1750114781313,10.0,2575.4,2574.8,3.88374439]
[1750114781549,3.88291596,2575.4,2574.7,3.88389767]
[1750114781757,10.0,2575.4,2574.8,3.88378541]
[1750114781957,3.88291428,2575.4,2574.7,3.8838867]
[1750114782162,12.339,2575.4,2574.8,3.88378977]
[1750114782346,1.77871678,2575.3,2574.8,3.88378977]
[1750114782658,1.77871678,2575.3,2574.8,3.88378811]
[1750114783064,1.77871678,2575.3,2574.9,3.88361513]
[1750114783357,1.77871678,2575.3,2574.8,3.88373814]
[1750114783727,1.77871678,2575.3,2574.6,3.8840985]
[1750114783924,12.339,2575.4,2574.8,3.88375719]
[1750114783925,1.41177168,2575.2,2574.8,3.88375719]
[1750114784126,3.88761009,2572.3,2572.1,0.04]
[1750114784434,3.88730494,2572.5,2572.1,0.04]
[1750114784435,1.95346101,2572.2,2572.1,0.04]
[1750114784647,1.5647,2572.2,2572.1,0.04]
[1750114784830,1.5449,2572.8,2572.1,0.04]
[1750114785032,10.0,2572.6,2572.1,0.04]
[1750114785336,3.88697705,2572.7,2572.1,0.04]
[1750114785533,3.88739772,2572.5,2572.1,0.04]
[1750114785739,0.38873977,2572.4,2572.1,0.04]
[1750114786750,3.88757143,2572.3,2572.1,0.04]
[1750114787862,4.2762148,2572.4,2572.1,0.04]
[1750114788021,13.88709248,2572.7,2572.1,0.04]
[1750114788229,3.831967,2572.6,2572.1,0.04]
[1750114788423,7.71909562,2572.6,2572.1,0.04]
[1750114788747,15.43171729,2572.8,2572.1,0.04]
[1750114788748,13.831967,2572.7,2572.1,0.04]
[1750114788966,10.0,2572.5,2572.1,0.04]
[1750114789259,10.0,2572.7,2572.1,3.459]
[1750114789835,1.5449,2572.8,2572.1,3.459]
[1750114790041,1.5449,2572.8,2572.2,3.88762629]
[1750114790280,3.47672047,2572.8,2572.2,3.88762629]
[1750114790442,7.36355218,2572.8,2572.1,7.34681396]
[1750114790641,3.47672047,2572.8,2572.2,3.88771379]
[1750114790872,10.0,2572.7,2572.1,3.459]
[1750114791081,11.34767205,2572.7,2572.1,7.34681317]
[1750114791447,3.88667359,2572.9,2572.1,7.34686276]
[1750114791643,3.88637233,2573.1,2572.1,7.34686276]
[1750114791644,13.88638029,2573.1,2572.3,3.88742229]
[1750114791894,10.0,2573.0,2572.3,3.88742229]
[1750114792588,14.49720673,2573.2,2572.5,3.88720563]
[1750114792770,14.49720673,2573.2,2572.6,3.88710838]
[1750114793097,14.49720673,2573.2,2572.3,8.213]
[1750114793098,3.88687315,2572.8,2572.3,8.213]
[1750114793602,3.88655566,2573.0,2572.3,8.213]
[1750114793739,52.83828192,2573.1,2572.3,8.213]
[1750114793942,39.93690295,2573.1,2572.3,8.213]
[1750114794168,28.48718228,2573.1,2572.9,3.88656883]
[1750114794356,28.48718228,2573.1,2572.4,1.557]
[1750114794568,28.48718228,2573.1,2572.5,12.43]
[1750114794772,28.48718228,2573.1,2573.0,3.88651379]
[1750114795793,28.48718228,2573.1,2572.4,1.557]
[1750114795946,28.48718228,2573.1,2572.9,3.42]
[1750114796343,28.48718228,2573.1,2572.9,7.30666211]
[1750114796549,28.48718228,2573.1,2572.5,3.88726919]
[1750114796849,28.48718228,2573.1,2573.0,3.42]
[1750114797349,28.48718228,2573.1,2572.9,3.42]
[1750114797787,32.37354977,2573.1,2572.9,3.42]
[1750114798164,28.48718228,2573.1,2572.9,3.42]
[1750114798352,28.48718228,2573.1,2572.8,3.419]
[1750114798553,3.8866123,2573.0,2572.8,3.419]
[1750114798753,31.72452675,2573.1,2572.8,3.419]
[1750114799302,31.72452675,2573.1,2572.4,1.557]
[1750114799461,26.1052513,2573.0,2572.4,4.976]
[1750114799661,26.1052513,2573.0,2572.4,8.86333726]
[1750114799859,19.80083856,2572.9,2572.4,8.86333726]
[1750114800197,23.68755778,2572.9,2572.4,4.976]
[1750114800495,19.80083856,2572.9,2572.3,8.213]
[1750114800654,4.05869358,2574.5,2572.3,8.213]
[1750114800655,13.9682,2572.7,2572.3,8.213]
[1750114800857,3.8874203,2572.4,2572.3,8.213]
[1750114801181,16.2264203,2572.4,2572.3,8.213]
[1750114801386,16.2264203,2572.4,2570.9,1.5626]
[1750114801387,3.88879512,2571.5,2570.9,1.5626]
[1750114801561,10.0,2571.9,2571.1,3.46]
[1750114801963,14.08827656,2572.0,2571.2,3.42]
[1750114802188,12.87774256,2571.8,2571.2,3.42]
[1750114802393,12.87774256,2571.8,2571.2,7.30922645]
[1750114802574,12.87774256,2571.8,2571.1,0.04]
[1750114802793,12.87774256,2571.8,2571.3,3.88899191]
[1750114802987,12.87774256,2571.8,2571.4,3.88890738]
[1750114803300,12.87774256,2571.8,2571.5,3.88877558]
[1750114803797,12.87774256,2571.8,2571.2,3.42]
[1750114803798,12.87774256,2571.8,2571.6,3.88862488]
[1750114803972,12.87774256,2571.8,2571.7,5.52077843]
[1750114804172,12.87774256,2571.8,2571.7,7.30847843]
[1750114804374,10.0,2572.3,2571.3,3.88908334]
[1750114804705,1.8969,2572.2,2571.7,3.88846988]
[1750114804872,1.8969,2572.2,2571.8,3.88832722]
[1750114805215,1.8969,2572.2,2571.7,7.30845915]
[1750114805418,1.8969,2572.2,2571.9,3.88808838]
[1750114805632,1.6123,2572.5,2572.1,3.88787372]
[1750114805835,1.6123,2572.5,2571.7,3.42]
[1750114805836,11.6123,2572.5,2571.7,3.42]
[1750114806013,11.6123,2572.5,2572.2,3.88764052]
[1750114806014,1.6123,2572.5,2572.2,3.88764052]
[1750114806318,12.84990434,2572.8,2571.8,0.03887986]
[1750114806319,1.6024,2572.8,2571.9,10.4713]
[1750114806490,1.6024,2573.7,2573.3,3.88603479]
[1750114806692,0.3378497,2573.6,2573.3,3.88597555]
[1750114806903,0.3378497,2573.6,2573.4,3.88577061]
[1750114807213,0.3378497,2573.6,2573.2,3.88620005]
[1750114807214,0.04,2573.9,2573.3,3.8860607]
[1750114807402,6.22446904,2573.7,2573.4,3.42]
[1750114807588,0.15983173,2573.6,2573.4,3.42]
[1750114807924,0.15983173,2573.6,2573.0,3.42]
[1750114808083,2.339,2573.7,2573.0,3.42]
[1750114808417,2.5769,2573.7,2573.3,3.88602471]
[1750114808719,2.5769,2573.7,2573.4,3.88583201]
[1750114808879,10.04,2573.9,2573.4,3.88582341]
[1750114808880,2.339,2573.8,2573.4,3.88582341]
[1750114809080,2.339,2573.8,2573.5,3.88574587]
[1750114809382,0.04,2573.9,2573.4,3.71033771]
[1750114809598,0.04,2573.9,2573.5,3.88575869]
[1750114809793,0.04,2573.9,2573.4,3.71033771]
[1750114809794,0.04,2573.9,2573.4,3.88586751]
[1750114809996,0.58584354,2573.9,2573.5,3.88570983]
[1750114810176,0.58584354,2573.9,2573.4,3.88584936]
[1750114810382,0.58584354,2573.9,2573.5,3.88574732]
[1750114810620,0.58584354,2573.9,2573.4,3.88585385]
[1750114810786,0.58584354,2573.9,2573.2,3.88621172]
[1750114810987,0.04,2573.9,2573.4,3.88581405]
[1750114811186,0.04,2573.9,2573.5,3.88575782]
[1750114811404,6.96386565,2573.9,2573.2,3.42]
[1750114811618,3.88541882,2573.8,2573.2,7.30620226]
[1750114811782,10.84907543,2573.9,2573.3,3.88604471]
[1750114811983,5.3587481,2573.8,2573.2,7.30615857]
[1750114812185,5.3587482,2573.8,2573.2,7.30615261]
[1750114812691,11.47342043,2573.8,2573.2,3.42]
[1750114812893,11.47342043,2573.8,2573.3,3.88596482]
[1750114813229,0.04,2573.9,2573.2,3.42]
[1750114813524,10.04,2573.9,2573.4,3.88582516]
[1750114813930,10.04,2573.9,2573.2,7.30609019]
[1750114813931,0.04,2573.9,2573.5,3.88565172]
[1750114814090,0.04,2573.9,2573.4,3.88585011]
[1750114814290,2.47943106,2573.9,2573.4,3.88585011]
[1750114814486,2.47943106,2573.9,2573.5,3.88575057]
[1750114814713,2.47943106,2573.9,2573.2,3.42]
[1750114814921,2.47943106,2573.9,2573.3,3.88597581]
[1750114814922,3.88534629,2573.8,2573.3,3.88597581]
[1750114815194,3.88545673,2573.7,2573.2,3.42]
[1750114815495,0.38854567,2573.6,2573.2,7.30618968]
[1750114815826,0.38854567,2573.6,2573.2,3.42]
[1750114816029,10.38854567,2573.6,2572.9,3.419]
[1750114816200,2.47943106,2573.9,2573.6,3.88554577]
[1750114816556,0.04,2573.9,2573.8,3.88530577]
[1750114816733,0.04,2573.9,2573.8,7.34315686]
[1750114817047,0.04,2573.9,2573.8,7.34315327]
[1750114817743,0.04,2573.9,2573.8,7.30430577]
[1750114817951,0.04,2573.9,2573.8,16.21330577]
[1750114818251,0.04,2573.9,2573.8,16.12130577]
[1750114819494,0.04,2573.9,2573.6,4.913]
[1750114819808,0.04,2573.9,2573.7,3.88539229]
[1750114820428,0.04,2573.9,2573.8,3.88530577]
[1750114820625,0.04,2573.9,2573.8,12.81815771]
[1750114820858,0.04,2573.9,2573.8,12.77930577]
[1750114821222,0.04,2573.9,2573.8,3.88530577]
[1750114821436,0.04,2573.9,2573.8,7.21130577]
[1750114821609,0.04,2573.9,2573.8,16.14115441]
[1750114821799,0.04,2573.9,2573.8,16.10230577]
[1750114822200,0.04,2573.9,2573.8,16.09930577]
[1750114822443,0.04,2573.9,2573.8,16.09730577]
[1750114822907,0.55,2574.6,2574.1,3.88484796]
[1750114823109,0.3429,2574.5,2574.0,7.21090489]
[1750114823430,0.3429,2574.5,2574.2,3.88468694]
[1750114823756,0.3429,2574.5,2574.3,3.326]
[1750114824450,0.3429,2574.5,2566.6,24.4836649]
[1750114824451,3.873,2574.2,2573.6,3.326]
[1750114824616,12.339,2574.5,2574.1,3.8847788]
[1750114825257,12.339,2574.5,2574.2,3.88470127]
[1750114825459,12.339,2574.5,2574.2,3.88468708]
[1750114825757,12.339,2574.5,2574.0,3.88491291]
[1750114825967,2.339,2574.7,2574.1,3.88476086]
[1750114826104,1.38713,2574.6,2574.2,3.326]
[1750114826308,1.38713,2574.6,2574.3,3.88454145]
[1750114826668,1.38713,2574.6,2573.4,3.88590969]
[1750114826669,0.55,2572.9,2571.6,3.88858722]
[1750114826810,0.55,2572.9,2570.4,4.979]
[1750114826811,29.10305522,2572.2,2571.0,1.6284]
[1750114827006,29.10305522,2572.2,2570.7,1.6284]
[1750114827007,12.889,2571.8,2570.7,1.6284]
[1750114827324,12.889,2571.6,2570.7,1.6284]
[1750114827670,2.889,2570.7,2570.1,0.04]
[1750114827888,11.5705,2571.2,2570.1,0.04]
[1750114827889,0.38254359,2571.1,2570.1,0.04]
[1750114828063,1.5705,2571.2,2570.1,0.07890788]
[1750114828263,1.5705,2571.7,2570.1,0.07890788]
[1750114828467,0.55,2571.6,2570.2,3.8907478]
[1750114828666,0.55,2571.6,2570.8,3.88981637]
[1750114828876,10.0,2571.5,2570.9,3.326]
[1750114829163,0.55,2571.6,2570.9,3.326]
[1750114829583,4.43863357,2571.6,2570.9,3.326]
[1750114829764,0.55,2571.6,2570.9,7.21557625]
[1750114830335,4.43863613,2571.6,2570.9,3.326]
[1750114830685,3.88906466,2571.4,2570.3,3.89050757]
[1750114830888,0.55,2571.4,2570.4,3.327]
[1750114831025,0.55,2571.4,2570.2,3.89064498]
[1750114831229,4.43953752,2571.0,2570.3,7.21749531]
[1750114831469,4.43953752,2571.0,2570.3,3.327]
[1750114831672,3.88996237,2570.8,2570.3,3.327]
[1750114831870,3.88973261,2570.9,2570.3,3.327]
[1750114832077,3.88972313,2570.9,2570.3,3.327]
[1750114832446,3.88987739,2570.8,2570.3,3.327]
[1750114832774,0.55,2571.1,2570.3,3.327]
[1750114833078,3.88953714,2571.0,2570.3,7.21748824]
[1750114833440,3.88953714,2571.0,2570.3,3.327]
[1750114833662,1.71788022,2571.0,2570.3,3.327]
[1750114833869,4.43973768,2570.9,2570.3,3.327]
[1750114834075,3.88984299,2570.8,2570.3,3.327]
[1750114834357,3.89039337,2570.5,2570.3,3.327]
[1750114834649,3.89040435,2570.5,2570.3,3.327]
[1750114834854,4.44002623,2570.7,2570.3,3.327]
[1750114834855,0.55,2570.7,2570.3,3.327]
[1750114835056,1.5329,2571.2,2570.3,3.327]
[1750114835379,1.5329,2571.7,2570.5,1.6321]
[1750114835564,10.0,2571.9,2570.6,3.328]
[1750114835762,3.88953791,2571.0,2570.6,3.328]
[1750114835962,3.88943509,2571.1,2570.6,3.328]
[1750114836137,0.55,2571.0,2570.6,3.328]
[1750114836342,0.55,2571.1,2570.6,3.328]
[1750114836654,1.14721657,2571.1,2570.6,3.328]
[1750114836835,3.88964202,2571.0,2570.6,3.328]
[1750114837034,5.0366404,2571.1,2570.6,3.328]
[1750114837236,3.88955309,2571.0,2570.5,3.328]
[1750114837481,3.88955309,2571.0,2570.1,1.6721]
[1750114837482,3.88955309,2571.0,2570.3,3.89053452]
[1750114837678,3.88999105,2570.7,2570.6,3.328]
[1750114838240,3.88999105,2570.7,2570.6,3.278]
[1750114838859,13.88990173,2570.8,2570.6,3.278]
[1750114839098,3.88999105,2570.7,2570.6,3.278]
[1750114839575,13.88986604,2570.8,2570.1,0.04]
[1750114839782,2.3223543,2570.7,2570.3,3.328]
[1750114839985,3.8903815,2570.5,2570.3,3.328]
[1750114840153,3.8903815,2570.5,2570.2,3.329]
[1750114840370,10.0,2570.3,2570.1,0.04]
[1750114840572,1.6311,2570.6,2570.1,0.04]
[1750114840573,1.0,2570.2,2570.1,0.04]
[1750114840780,1.6311,2570.6,2570.1,0.04]
[1750114841025,10.0,2570.7,2570.2,12.10865222]
[1750114841327,10.0,2570.7,2570.3,7.21957422]
[1750114841623,1.6311,2571.0,2570.3,3.329]
[1750114841758,10.0,2570.9,2570.4,3.89031109]
[1750114841960,1.6311,2571.0,2570.4,3.8904356]
[1750114842190,1.6311,2571.0,2570.3,3.329]
[1750114842388,10.0,2571.2,2570.3,4.945]
[1750114842586,11.8818,2571.2,2570.3,4.945]
[1750114842796,5.77115281,2571.2,2570.5,3.89017684]
[1750114843007,3.88970532,2570.9,2570.6,3.329]
[1750114843198,3.88936318,2571.2,2570.6,7.21902006]
[1750114843606,3.88908334,2571.3,2570.6,3.329]
[1750114843607,3.88967533,2571.0,2570.6,3.329]
[1750114843916,3.88981154,2570.9,2570.7,3.329]
[1750114844116,4.27879269,2570.9,2570.3,3.89059348]
[1750114844301,2.339,2570.8,2570.7,3.329]
[1750114845278,2.339,2571.0,2570.7,3.329]
[1750114845802,2.339,2570.8,2570.2,8.218]
[1750114846009,2.339,2570.8,2570.3,3.33]
[1750114846201,2.339,2570.8,2570.3,7.22054803]
[1750114846414,2.339,2570.8,2570.2,8.218]
[1750114846415,2.339,2570.4,2570.2,8.218]
[1750114847488,2.339,2570.5,2570.2,8.218]
[1750114847815,6.22959642,2570.3,2570.2,8.218]
[1750114848216,2.339,2570.3,2570.2,8.218]
[1750114848719,6.22959642,2570.3,2570.2,8.218]
[1750114848924,8.4065472,2570.3,2570.2,8.218]
[1750114849420,4.51595078,2570.3,2570.2,8.218]
[1750114849826,2.339,2570.3,2570.2,8.218]
[1750114849977,6.22959642,2570.3,2570.2,8.218]
[1750114850428,0.2339,2570.8,2570.3,3.8905184]
[1750114850627,10.2339,2570.8,2570.4,3.89040323]
[1750114850937,3.8891083,2571.3,2570.7,3.88988892]
[1750114851144,0.39367871,2571.3,2570.6,0.03889506]
[1750114851311,3.88958111,2571.0,2570.6,3.245]
[1750114851518,6.92386565,2571.6,2570.6,3.245]
[1750114851715,4.48831767,2572.3,2570.6,3.245]
[1750114851716,13.831967,2572.2,2570.8,1.6298]
[1750114851914,0.15983173,2572.1,2571.7,3.88835445]
[1750114852129,0.15983173,2572.1,2571.8,3.246]
[1750114852518,10.0,2572.0,2571.8,3.246]
[1750114852700,2.339,2571.9,2571.8,3.246]
[1750114852903,2.339,2571.7,2571.4,8.22]
[1750114853104,0.63868579,2571.9,2571.5,3.88873702]
[1750114853403,0.63868579,2571.9,2571.4,8.22]
[1750114853603,10.0,2572.2,2571.4,8.22]
[1750114853828,2.339,2571.9,2571.4,8.22]
[1750114854033,2.339,2572.1,2571.6,3.88854522]
[1750114854202,10.0,2572.1,2571.7,3.88834924]
[1750114854405,10.0,2572.1,2571.4,8.22]
[1750114854406,10.0,2572.1,2571.4,12.10888575]
[1750114854606,8.781,2572.2,2571.4,12.10888575]
[1750114854607,1.8781,2572.0,2571.4,12.10892003]
[1750114854822,10.0,2572.2,2571.8,3.88830461]
[1750114855006,10.0,2572.2,2571.4,8.22]
[1750114855225,10.0,2572.2,2571.8,3.88829423]
[1750114855431,10.0,2572.2,2571.7,3.88842694]
[1750114855645,1.6155,2572.7,2571.8,0.03888309]
[1750114855847,1.11931958,2572.9,2571.9,8.771]
[1750114855848,0.04,2572.9,2571.9,8.771]
[1750114856048,0.04,2572.9,2572.8,3.88681592]
[1750114856351,0.04,2572.9,2572.8,15.38968026]
[1750114856534,0.04,2572.9,2572.8,16.87901592]
[1750114856708,0.04,2572.9,2572.8,8.219]
[1750114856904,0.04,2572.9,2572.8,15.35081592]
[1750114857507,0.04,2572.9,2572.8,16.88061592]
[1750114859253,0.04,2572.9,2572.8,23.80448157]
[1750114859433,0.04,2573.9,2573.6,3.8855223]
[1750114859636,0.04,2573.9,2573.7,3.244]
[1750114860036,0.82099997,2573.9,2573.7,3.244]
[1750114860251,0.04,2573.9,2573.7,7.12933461]
[1750114860424,0.04,2573.9,2573.8,3.88530577]
[1750114860737,0.04,2573.9,2573.1,3.244]
[1750114860738,10.0,2573.8,2573.1,3.244]
[1750114860941,13.88621172,2573.2,2572.2,3.244]
[1750114861152,10.0,2572.9,2572.2,3.244]
[1750114861353,1.537,2572.3,2571.7,8.215]
[1750114861540,11.504,2572.1,2571.5,3.244]
[1750114861714,1.504,2572.1,2571.5,3.244]
[1750114861916,16.92386565,2571.9,2571.5,3.244]
[1750114862143,1.504,2572.1,2571.2,3.244]
[1750114862342,6.92386565,2571.8,2571.1,0.04]
[1750114862526,3.88910174,2571.3,2571.1,0.04]
[1750114862738,3.88914078,2571.3,2571.1,0.04]
[1750114863053,3.88923459,2571.2,2571.1,0.04]
[1750114863612,15.43933459,2571.2,2571.1,0.04]
[1750114863811,14.56423622,2571.2,2571.1,0.04]
[1750114864068,18.45347081,2571.2,2571.1,0.04]
[1750114864722,22.28543781,2571.2,2571.1,0.04]
[1750114865118,31.01943781,2571.2,2571.1,0.04]
[1750114866154,22.28543781,2571.2,2571.1,0.04]
[1750114866325,3.88909753,2571.3,2571.1,0.04]
[1750114866527,3.88923459,2571.2,2571.1,0.04]
[1750114866753,0.84278656,2572.0,2571.1,0.04]
[1750114866961,5.42713852,2572.4,2571.2,5.46783459]
[1750114867157,5.42713852,2572.4,2571.6,3.88857477]
[1750114867158,10.0,2572.2,2571.6,3.88857477]
[1750114867362,5.4271645,2572.4,2571.7,7.17234907]
[1750114867659,1.5396,2572.4,2571.8,3.245]
[1750114868245,3.88727422,2572.5,2571.8,3.245]
[1750114868449,3.88732615,2572.5,2571.8,7.13332443]
[1750114868652,3.88761779,2572.3,2571.8,3.245]
[1750114868834,12.60897976,2572.7,2571.9,3.8880482]
[1750114869034,3.88684258,2572.8,2572.1,3.88775266]
[1750114869249,3.88684258,2572.8,2572.1,3.88787372]
[1750114869447,10.0,2572.6,2572.0,3.88792828]
[1750114869652,1.5979,2572.9,2571.9,8.72]
[1750114869873,1.5979,2572.9,2572.0,3.92676567]
[1750114870034,6.22595449,2572.8,2572.0,1.61037347]
[1750114870238,2.339,2572.7,2572.0,1.5715]
[1750114870471,2.339,2572.7,2572.2,3.88768327]
[1750114870652,0.78238545,2572.8,2572.3,3.8874231]
[1750114870856,1.5979,2572.9,2572.0,1.61037371]
[1750114870857,3.88669074,2572.9,2572.2,3.92653427]
[1750114871167,10.0,2572.7,2572.1,3.88776474]
[1750114871373,10.0,2572.7,2572.2,3.88767275]
[1750114871734,13.88699489,2572.7,2572.1,3.8878196]
[1750114872055,13.88699489,2572.7,2572.0,1.5715]
[1750114872056,2.339,2572.9,2572.2,3.88761955]
[1750114872260,3.88584748,2573.5,2572.0,1.5715]
[1750114872261,16.170967,2573.2,2572.4,3.8874203]
[1750114872433,12.339,2573.2,2572.6,3.88711809]
[1750114872765,10.0,2573.1,2572.7,3.244]
[1750114872973,1.41911017,2573.3,2572.7,3.244]
[1750114873194,8.67395423,2573.8,2570.7,3.88988086]
[1750114873195,2.339,2573.5,2570.7,3.88988086]
[1750114873402,2.339,2573.3,2572.3,3.88757143]
[1750114873603,4.75688095,2573.7,2572.8,3.88667037]
[1750114873801,10.0,2573.5,2573.0,3.88638879]
[1750114874100,2.339,2573.5,2572.9,3.244]
[1750114874246,1.2339,2573.4,2572.9,3.244]
[1750114874442,3.88632294,2573.2,2572.9,3.244]
[1750114874682,10.0,2573.0,2571.8,8.218]
[1750114874841,12.58423722,2573.2,2572.1,3.244]
[1750114875042,10.0,2572.9,2571.7,8.217]
[1750114875280,3.88774273,2572.2,2571.8,3.244]
[1750114875487,3.88681592,2572.8,2571.8,3.244]
[1750114875488,10.0,2572.5,2571.8,3.244]
[1750114875782,3.88817605,2571.9,2571.8,3.244]
[1750114875995,10.0,2572.3,2571.8,3.244]
[1750114876294,3.88812175,2572.0,2571.8,3.244]
[1750114876595,3.88618513,2573.3,2572.6,3.8870157]
[1750114876747,3.88621615,2573.2,2572.7,8.71402659]
[1750114876946,3.8860607,2573.3,2572.8,3.244]
[1750114877171,10.0,2573.8,2572.8,3.244]
[1750114877172,3.88536811,2573.8,2572.8,3.244]
[1750114877382,3.11535681,2573.7,2572.9,3.244]
[1750114877679,10.0,2572.9,2572.0,1.6199]
[1750114877885,3.9433,2573.1,2572.0,1.6199]
[1750114877886,10.0,2573.0,2572.1,3.244]
[1750114878182,10.0,2572.7,2572.2,3.244]
[1750114878484,10.0,2572.8,2572.3,3.88754042]
[1750114878777,16.14393171,2572.8,2572.2,7.13162735]
[1750114878983,3.88742193,2572.4,2572.2,3.244]
[1750114879200,1.6083,2573.1,2572.2,3.244]
[1750114879395,5.46135387,2573.6,2572.8,5.4832697]
[1750114879541,3.88635074,2573.2,2572.8,1.5966]
[1750114879741,3.88635074,2573.2,2572.9,3.164]
[1750114879742,4.27490888,2573.2,2572.9,3.164]
[1750114879946,3.88641216,2573.1,2572.9,3.164]
[1750114880300,0.38863507,2573.2,2572.9,3.164]
[1750114880501,1.5757,2573.6,2572.6,3.88700735]
[1750114880704,1.5757,2573.6,2572.4,5.43542857]
[1750114880705,3.88614724,2573.3,2572.7,7.0509645]
[1750114880864,0.77719059,2573.3,2572.7,3.164]
[1750114881209,3.831967,2573.4,2572.7,3.164]
[1750114881373,3.88707139,2572.7,2572.0,5.43598884]
[1750114881573,8.672,2573.1,2572.2,3.88772257]
[1750114881762,3.88669295,2572.9,2572.3,3.88742686]
[1750114881964,1.5757,2573.6,2572.4,0.03887029]
[1750114882201,0.04,2573.9,2572.8,3.88681592]
[1750114882202,3.92525659,2573.9,2572.8,3.88681592]
[1750114882508,0.59291566,2573.9,2573.0,3.88651379]
[1750114882687,3.92520472,2573.9,2573.2,3.88607591]
[1750114883011,3.92520472,2573.9,2573.1,3.9251726]
[1750114883012,0.04,2573.9,2573.1,0.03885683]
[1750114883301,0.04,2573.9,2573.3,3.88596368]
[1750114883302,3.92525084,2573.9,2573.3,3.88596368]
[1750114883463,0.04,2573.9,2573.4,3.164]
[1750114883662,0.04,2573.9,2572.9,8.215]
[1750114883663,10.0,2573.6,2572.9,8.215]
[1750114883864,3.88630329,2573.2,2572.9,8.215]
[1750114884064,3.88642159,2573.1,2572.9,8.215]
[1750114884302,6.22121353,2573.2,2572.9,8.215]
[1750114884602,2.335,2573.2,2572.9,8.215]
[1750114884774,3.88636275,2573.1,2572.9,8.215]
[1750114884975,6.22127445,2573.2,2572.9,8.215]
[1750114885161,3.95712744,2573.2,2572.9,8.215]
[1750114885366,7.84338817,2573.2,2572.9,8.215]
[1750114885687,3.88637989,2573.1,2572.9,8.215]
[1750114886006,7.84340794,2573.2,2572.9,8.215]
[1750114886210,6.22136275,2573.1,2572.9,8.215]
[1750114886407,8.67395423,2574.4,2572.9,8.215]
[1750114886737,1.07825164,2574.7,2573.7,3.88538756]
[1750114886738,1.5379,2574.7,2573.7,3.88538756]
[1750114887004,3.88437277,2574.5,2573.8,7.08715491]
[1750114887206,10.0,2574.5,2573.1,5.41275198]
[1750114887381,2.335,2574.2,2573.5,3.88562283]
[1750114887581,2.335,2574.0,2573.6,3.163]
[1750114887763,4.16274746,2573.9,2573.6,3.163]
[1750114887986,4.16274746,2573.9,2572.4,3.88738278]
[1750114887987,7.74735673,2573.7,2572.9,11.378]
[1750114888187,2.335,2573.5,2572.9,11.378]
[1750114888387,2.335,2573.8,2572.9,11.378]
[1750114888732,2.335,2573.7,2572.9,11.378]
[1750114888889,13.5685,2573.6,2573.0,3.88637921]
[1750114889089,17.45412068,2573.6,2573.0,3.88637921]
[1750114889289,0.2775,2573.9,2573.1,0.0388595]
[1750114889531,0.2775,2573.9,2573.2,3.163]
[1750114889532,3.88530577,2573.8,2573.2,3.163]
[1750114890027,3.88549312,2573.7,2573.2,3.163]
[1750114890540,6.22049312,2573.7,2573.2,3.163]
[1750114890739,3.88545673,2573.7,2573.2,3.163]
[1750114890943,0.04,2573.9,2573.2,3.163]
[1750114891102,13.88555415,2573.7,2573.2,3.163]
[1750114891441,13.88555415,2573.7,2573.1,3.88634562]
[1750114891643,10.0,2573.3,2572.9,8.215]
[1750114891945,10.0,2573.4,2572.9,12.10166419]
[1750114892148,3.92525921,2573.9,2573.3,3.88597536]
[1750114892307,10.98689491,2573.9,2573.3,3.88593473]
[1750114892642,0.98689491,2573.9,2572.9,8.215]
[1750114892828,2.335,2573.8,2572.9,8.215]
[1750114892999,2.335,2573.8,2573.2,3.88607005]
[1750114893203,6.22055692,2573.7,2573.1,3.88633766]
[1750114893542,2.335,2573.7,2573.2,7.04919206]
[1750114893715,2.335,2573.7,2573.2,3.163]
[1750114894042,2.335,2573.7,2573.2,7.04917236]
[1750114894227,2.335,2573.8,2573.4,3.88580548]
[1750114894414,6.22080223,2573.5,2573.2,3.163]
[1750114894747,6.2210607,2573.3,2573.2,3.163]
[1750114894945,12.335,2573.3,2573.2,3.163]
[1750114895308,16.2210607,2573.3,2573.2,3.163]
[1750114895710,12.335,2573.3,2573.2,3.163]
[1750114896017,1.62601731,2573.8,2573.2,3.163]
[1750114896232,3.88530577,2573.8,2573.2,7.04916981]
[1750114896431,3.92520278,2573.9,2573.2,3.163]
[1750114896640,0.39252028,2573.8,2573.2,7.04913386]
[1750114896845,13.92526659,2573.9,2573.3,3.88598728]
[1750114897148,2.335,2573.7,2573.3,3.88597434]
[1750114897519,10.0,2573.6,2573.2,7.04914302]